bitfinex-derivatives/quotes_BTCF0:USTF0_20241020
["timestamp","ask_amount","ask_price","bid_price","bid_amount"]
[1729462851740,0.3608,68911.0,68907.0,0.04312125]
[1729462851741,0.058056,68909.0,68907.0,0.04312125]
[1729462851949,0.3608,68911.0,68905.0,0.05731444]
[1729462852135,0.3608,68911.0,68910.0,0.058055]
[1729462854046,0.3618,68911.0,68910.0,0.058055]
[1729462855337,0.419854,68911.0,68910.0,0.058055]
[1729462855647,0.28912026,68911.0,68910.0,0.16594451]
[1729462856542,0.23106626,68911.0,68910.0,0.25217958]
[1729462856745,0.28912026,68911.0,68910.0,0.25217958]
[1729462856939,0.059054,68911.0,68910.0,0.16594451]
[1729462857242,0.059054,68911.0,68910.0,0.19412961]
[1729462857543,0.001,68911.0,68910.0,0.10681572]
[1729462857742,0.001,68911.0,68910.0,0.19303445]
[1729462857743,0.059054,68911.0,68910.0,0.19303445]
[1729462857948,0.059054,68911.0,68910.0,0.25109364]
[1729462858131,0.001,68911.0,68910.0,0.16487072]
[1729462858537,0.001,68911.0,68910.0,0.25109364]
[1729462858742,0.3618,68911.0,68910.0,0.25109364]
[1729462859246,0.31096016,68911.0,68910.0,0.16487072]
[1729462860145,0.419723,68924.0,68910.0,0.10681572]
[1729462860146,0.418849,68917.0,68910.0,0.10681572]
[1729462860337,0.418849,68917.0,68915.0,0.058051]
[1729462860543,0.418849,68917.0,68916.0,0.10681572]
[1729462860939,0.3608,68917.0,68916.0,0.1063749]
[1729462861138,0.418849,68917.0,68916.0,0.1063749]
[1729462861340,0.419849,68917.0,68916.0,0.1063749]
[1729462861539,0.419849,68917.0,68916.0,0.1644249]
[1729462861849,0.001,68917.0,68916.0,0.1644249]
[1729462862040,0.0021769,68931.0,68930.0,0.058038]
[1729462862243,0.0021769,68931.0,68930.0,0.5252129]
[1729462862448,0.0021769,68931.0,68930.0,0.61131519]
[1729462862650,0.0021769,68931.0,68930.0,0.59594252]
[1729462862845,0.0021769,68931.0,68930.0,0.52419379]
[1729462863956,0.3608,68945.0,68930.0,0.88599379]
[1729462864147,0.0372,68949.0,68945.0,0.058025]
[1729462864449,0.0372,68949.0,68944.0,0.05739347]
[1729462864450,0.0372,68949.0,68947.0,0.04304079]
[1729462864640,0.0372,68949.0,68947.0,0.10106379]
[1729462864842,0.0372,68949.0,68948.0,0.058023]
[1729462865044,0.058023,68948.0,68947.0,0.04304079]
[1729462866243,0.058023,68948.0,68947.0,0.001]
[1729462866440,0.058023,68948.0,68947.0,0.04404079]
[1729462866856,0.058023,68948.0,68947.0,0.04304079]
[1729462867051,0.065023,68948.0,68947.0,0.04404079]
[1729462867253,0.007,68948.0,68947.0,0.10206479]
[1729462867458,0.007,68948.0,68947.0,0.059024]
[1729462867668,0.41966,68952.0,68950.0,0.058021]
[1729462867847,0.41882,68952.0,68950.0,0.058021]
[1729462868254,0.41882,68952.0,68951.0,0.05802]
[1729462869349,0.41882,68952.0,68949.0,0.04303938]
[1729462869350,0.058021,68950.0,68949.0,0.04303938]
[1729462869544,0.058022,68949.0,68948.0,0.04303938]
[1729462869764,0.058022,68949.0,68942.0,0.3608]
[1729462869765,0.058023,68948.0,68947.0,0.04303938]
[1729462870053,0.058023,68948.0,68942.0,0.3608]
[1729462870054,0.0367,68948.0,68945.0,0.04303938]
[1729462870257,0.3668,68952.0,68944.0,0.04303938]
[1729462870446,0.006,68952.0,68951.0,0.05802]
[1729462870647,0.0353,68958.0,68949.0,0.3608]
[1729462870843,0.0353,68958.0,68957.0,0.058015]
[1729462871558,0.3608,68960.0,68959.0,0.058014]
[1729462873043,0.3638,68960.0,68959.0,0.058014]
[1729462873243,0.3638,68960.0,68953.0,0.0430198]
[1729462873447,0.3638,68960.0,68948.0,0.0012]
[1729462873448,0.058022,68949.0,68948.0,0.0012]
[1729462873655,0.058019,68953.0,68945.0,0.058025]
[1729462873852,0.4339,68948.0,68945.0,0.058025]
[1729462874161,0.058024,68947.0,68945.0,0.058025]
[1729462874952,0.058024,68947.0,68939.0,0.0430198]
[1729462875264,0.003,68960.0,68958.0,0.058015]
[1729462875460,0.36168,68961.0,68960.0,0.058013]
[1729462875662,0.3608,68961.0,68960.0,0.058013]
[1729462877351,0.3648,68961.0,68960.0,0.058013]
[1729462877764,0.3648,68961.0,68960.0,0.418813]
[1729462877765,0.004,68961.0,68960.0,0.418813]
[1729462878961,0.06018636,68963.0,68962.0,0.058011]
[1729462879456,0.42098636,68963.0,68962.0,0.058011]
[1729462880551,0.36697636,68963.0,68953.0,0.3608]
[1729462880757,0.073,68962.0,68947.0,0.04300932]
[1729462880952,0.3608,68951.0,68948.0,0.058023]
[1729462881153,0.058025,68946.0,68945.0,0.36196]
[1729462881655,0.0344,68950.0,68949.0,0.058022]
[1729462882962,0.0344,68950.0,68949.0,0.064022]
[1729462882963,0.001,68950.0,68949.0,0.064022]
[1729462884363,0.059021,68950.0,68949.0,0.064022]
[1729462884571,0.059021,68950.0,68949.0,0.006]
[1729462885064,0.058023,68948.0,68936.0,0.058033]
[1729462885267,0.058022,68949.0,68928.0,0.04300932]
[1729462885268,0.3608,68941.0,68928.0,0.04300932]
[1729462885473,0.058035,68934.0,68933.0,0.058036]
[1729462885853,0.058035,68934.0,68927.0,0.07266]
[1729462885854,0.058021,68951.0,68940.0,0.05803]
[1729462886055,0.0357,68948.0,68946.0,0.058024]
[1729462886362,0.3975,68948.0,68936.0,0.006]
[1729462886667,0.3608,68942.0,68941.0,0.058029]
[1729462886855,0.418828,68942.0,68941.0,0.058029]
[1729462887057,0.418828,68942.0,68936.0,0.006]
[1729462887058,0.058031,68939.0,68938.0,0.058031]
[1729462887269,0.3608,68942.0,68936.0,0.006]
[1729462887270,0.058032,68937.0,68936.0,0.006]
[1729462887468,0.058032,68937.0,68936.0,0.064033]
[1729462888161,0.058032,68937.0,68936.0,0.058033]
[1729462889056,0.059032,68937.0,68936.0,0.058033]
[1729462889468,0.001,68937.0,68936.0,0.058033]
[1729462890257,0.059032,68937.0,68936.0,0.058033]
[1729462890467,0.001,68937.0,68936.0,0.058033]
[1729462892159,0.001,68937.0,68936.0,0.418833]
[1729462892868,0.00217636,68963.0,68936.0,0.90611911]
[1729462893065,0.00217636,68963.0,68959.0,0.058014]
[1729462893066,0.058013,68960.0,68959.0,0.058014]
[1729462893275,0.1091,68962.0,68951.0,0.04315687]
[1729462893468,0.058016,68957.0,68951.0,0.04315687]
[1729462894672,0.058016,68957.0,68956.0,0.058016]
[1729462895568,0.3608,68959.0,68951.0,0.04415687]
[1729462895569,0.05802,68952.0,68951.0,0.04415687]
[1729462895770,0.05802,68952.0,68951.0,0.001]
[1729462895771,0.41882,68952.0,68951.0,0.001]
[1729462896075,0.41882,68952.0,68951.0,0.05802]
[1729462896272,0.41882,68952.0,68951.0,0.10117861]
[1729462896683,0.05802,68952.0,68951.0,0.05802]
[1729462897967,0.3608,68959.0,68948.0,0.05754249]
[1729462898172,0.3608,68959.0,68951.0,0.001]
[1729462898173,0.3608,68952.0,68951.0,0.001]
[1729462898379,0.41882,68952.0,68951.0,0.001]
[1729462899273,0.3618,68959.0,68948.0,0.04316183]
[1729462899476,0.058016,68956.0,68954.0,0.058018]
[1729462900466,0.3618,68959.0,68954.0,0.058018]
[1729462900679,0.058017,68955.0,68954.0,0.058018]
[1729462901180,0.3608,68958.0,68949.0,0.058021]
[1729462901369,0.3608,68958.0,68952.0,0.05802]
[1729462901370,0.05802,68953.0,68952.0,0.05802]
[1729462902469,0.058016,68957.0,68955.0,0.058017]
[1729462902673,0.1091,68962.0,68952.0,0.001]
[1729462903181,0.058013,68960.0,68952.0,0.001]
[1729462903375,0.058013,68960.0,68958.0,0.058014]
[1729462903868,0.1091,68962.0,68955.0,0.001]
[1729462903869,0.058016,68956.0,68955.0,0.059017]
[1729462904068,0.3608,68959.0,68958.0,0.058015]
[1729462904874,0.418814,68959.0,68958.0,0.058015]
[1729462906185,0.3608,68959.0,68951.0,0.3608]
[1729462906378,0.3608,68952.0,68937.0,0.00116]
[1729462906576,0.3608,68952.0,68936.0,0.01088698]
[1729462906577,0.05802,68951.0,68949.0,0.058022]
[1729462906778,0.3608,68952.0,68943.0,0.058027]
[1729462906986,0.058024,68947.0,68945.0,0.058025]
[1729462907179,0.1104,68946.0,68945.0,0.058025]
[1729462907574,0.168425,68946.0,68945.0,0.058025]
[1729462908884,0.1114,68946.0,68945.0,0.059025]
[1729462909781,0.001,68946.0,68945.0,0.46298683]
[1729462910086,0.001,68946.0,68945.0,0.419825]
[1729462911187,0.001,68946.0,68945.0,0.46300989]
[1729462911385,0.001,68946.0,68945.0,0.10220989]
[1729462913288,0.001,68946.0,68945.0,0.059025]
[1729462913983,0.3608,68955.0,68953.0,0.058019]
[1729462913984,0.418818,68955.0,68953.0,0.058019]
[1729462914192,0.058018,68954.0,68953.0,0.058019]
[1729462916984,0.008,68954.0,68949.0,0.04318318]
[1729462917187,0.008,68954.0,68861.0,0.580967]
[1729462917188,0.008,68954.0,68946.0,0.04318318]
[1729462917389,0.3608,68947.0,68944.0,0.058026]
[1729462917576,0.058025,68945.0,68944.0,0.058026]
[1729462918585,0.058025,68945.0,68939.0,0.00217567]
[1729462918586,0.3608,68947.0,68946.0,0.058025]
[1729462920184,0.058022,68949.0,68947.0,0.058023]
[1729462920386,0.058022,68949.0,68948.0,0.058023]
[1729462920882,0.3608,68955.0,68954.0,0.058018]
[1729462921082,0.3608,68955.0,68947.0,0.3608]
[1729462921083,0.058012,68961.0,68958.0,0.058015]
[1729462921586,0.3608,68962.0,68958.0,0.058015]
[1729462922483,0.418809,68964.0,68958.0,0.058015]
[1729462922690,0.418809,68964.0,68953.0,0.3608]
[1729462922691,0.36156,68964.0,68953.0,0.3608]
[1729462922889,0.3608,68964.0,68963.0,0.05801]
[1729462923897,0.3688,68964.0,68963.0,0.05801]
[1729462926086,0.008,68964.0,68963.0,0.05801]
[1729462926280,0.00217589,68968.0,68967.0,0.058007]
[1729462927985,0.00217589,68968.0,68967.0,0.095407]
[1729462927986,0.01017589,68968.0,68967.0,0.095407]
[1729462931894,0.3608,69002.0,68967.0,1.0724]
[1729462932090,0.3608,69002.0,68986.0,0.3608]
[1729462932289,0.3608,69002.0,69001.0,0.057978]
[1729462933401,0.3688,69002.0,69001.0,0.057978]
[1729462933991,0.3608,69002.0,69001.0,0.057978]
[1729462934193,0.3688,69002.0,69001.0,0.057978]
[1729462934395,0.008,69002.0,69001.0,0.057978]
[1729462934799,0.008,69002.0,68987.0,0.00217427]
[1729462934998,0.418789,68988.0,68987.0,0.00217427]
[1729462935396,0.057998,68978.0,68964.0,0.0901938]
[1729462935597,0.4188,68975.0,68964.0,0.01124941]
[1729462935803,0.4188,68975.0,68974.0,0.058001]
[1729462936005,0.3608,68975.0,68974.0,0.058001]
[1729462936506,0.3608,68975.0,68966.0,0.3608]
[1729462936507,0.3608,68987.0,68986.0,0.057991]
[1729462936690,0.398,68987.0,68986.0,0.057991]
[1729462937094,0.0372,68987.0,68986.0,0.057991]
[1729462937289,0.0364,68993.0,68992.0,0.057986]
[1729462939995,0.0394,68993.0,68992.0,0.057986]
[1729462940912,0.097385,68993.0,68992.0,0.057986]
[1729462941807,0.057988,68990.0,68979.0,0.3608]
[1729462942117,0.057988,68990.0,68988.0,0.057989]
[1729462942408,0.097386,68993.0,68980.0,0.057996]
[1729462942599,0.057987,68992.0,68988.0,0.057989]
[1729462943001,0.057987,68992.0,68990.0,0.057987]
[1729462943408,0.057987,68992.0,68979.0,0.3608]
[1729462943409,0.057987,68992.0,68991.0,0.057987]
[1729462943601,0.057987,68992.0,68979.0,0.3608]
[1729462943602,0.0364,68993.0,68979.0,0.3608]
[1729462943798,0.0364,68993.0,68992.0,0.057986]
[1729462945206,0.05799,68988.0,68979.0,0.3608]
[1729462945416,0.3608,68984.0,68973.0,0.39896]
[1729462945600,0.3608,68984.0,68978.0,0.057997]
[1729462945601,0.057997,68979.0,68978.0,0.057997]
[1729462946108,0.057999,68977.0,68973.0,0.3608]
[1729462946404,0.035,68976.0,68965.0,0.00116]
[1729462946597,0.418804,68971.0,68970.0,0.058004]
[1729462947203,0.3608,68971.0,68959.0,0.3608]
[1729462947412,0.058006,68968.0,68959.0,0.3608]
[1729462947715,0.058009,68965.0,68964.0,0.058009]
[1729462948715,0.0366,68967.0,68966.0,0.058008]
[1729462949016,0.058009,68965.0,68959.0,0.3608]
[1729462949309,0.058009,68965.0,68952.0,0.01130909]
[1729462949310,0.418812,68961.0,68948.0,0.04304439]
[1729462949498,0.418812,68961.0,68944.0,0.41819252]
[1729462949499,0.3608,68961.0,68951.0,0.05802]
[1729462949706,0.3608,68961.0,68944.0,0.3608]
[1729462950111,0.3608,68961.0,68960.0,0.058013]
[1729462950416,0.3608,68961.0,68960.0,0.067013]
[1729462950998,0.418812,68961.0,68960.0,0.067013]
[1729462951610,0.3608,68961.0,68960.0,0.067013]
[1729462951808,0.0366,68967.0,68966.0,0.058008]
[1729462952512,0.3974,68967.0,68966.0,0.058008]
[1729462952721,0.3974,68967.0,68960.0,0.008]
[1729462952912,0.418812,68961.0,68960.0,0.008]
[1729462953211,0.3974,68967.0,68960.0,0.008]
[1729462953212,0.058008,68966.0,68960.0,0.008]
[1729462953413,0.3984,68967.0,68956.0,0.3608]
[1729462953606,0.3984,68967.0,68966.0,0.058008]
[1729462954806,0.0366,68967.0,68966.0,0.058008]
[1729462955819,0.0376,68967.0,68966.0,0.067008]
[1729462962021,0.095607,68967.0,68966.0,0.067008]
[1729462962424,0.0376,68967.0,68966.0,0.067008]
[1729462966334,0.095607,68967.0,68966.0,0.067008]
[1729462968432,0.095607,68967.0,68951.0,0.3608]
[1729462968433,0.8334,68967.0,68951.0,0.3608]
[1729462968726,0.058019,68953.0,68952.0,0.058019]
[1729462968915,0.3608,68958.0,68951.0,0.3608]
[1729462968916,0.05802,68952.0,68951.0,0.3608]
[1729462969116,0.058016,68956.0,68953.0,0.058018]
[1729462969321,0.058016,68956.0,68951.0,0.3608]
[1729462969518,0.457168,68967.0,68951.0,0.3608]
[1729462969519,0.3984,68967.0,68951.0,0.3608]
[1729462969737,0.058014,68960.0,68959.0,0.058014]
[1729462970723,0.3608,68961.0,68960.0,0.058013]
[1729462971228,0.058011,68962.0,68961.0,0.05801]
[1729462973324,0.059011,68962.0,68961.0,0.05801]
[1729462973935,0.001,68962.0,68951.0,0.40384439]
[1729462974234,0.058016,68957.0,68955.0,0.058016]
[1729462974628,0.058016,68957.0,68956.0,0.058016]
[1729462975026,0.058016,68957.0,68951.0,0.00116]
[1729462975027,0.43504,68957.0,68951.0,0.00116]
[1729462975228,0.3608,68952.0,68945.0,0.0726]
[1729462975424,0.0755,68951.0,68945.0,0.0726]
[1729462975626,0.058028,68942.0,68941.0,0.058028]
[1729462976528,0.3608,68946.0,68938.0,0.058031]
[1729462976529,0.05803,68940.0,68938.0,0.058031]
[1729462976725,0.058031,68939.0,68938.0,0.058031]
[1729462977940,0.058031,68939.0,68892.0,0.17734031]
[1729462977941,0.43516,68939.0,68925.0,0.0726]
[1729462978142,0.3608,68928.0,68927.0,0.058041]
[1729462978438,0.05804,68928.0,68927.0,0.058041]
[1729462979029,0.3608,68931.0,68914.0,0.0356]
[1729462979233,0.058046,68921.0,68911.0,0.3608]
[1729462979430,0.058047,68920.0,68919.0,0.058047]
[1729462980043,0.3608,68923.0,68911.0,0.3608]
[1729462980248,0.058046,68922.0,68921.0,0.058045]
[1729462980632,0.3608,68923.0,68922.0,0.058045]
[1729462981035,0.3618,68923.0,68922.0,0.058045]
[1729462981340,0.419844,68923.0,68922.0,0.058045]
[1729462981932,0.058047,68920.0,68911.0,0.3608]
[1729462982138,0.058047,68920.0,68919.0,0.058047]
[1729462982439,0.058047,68920.0,68910.0,0.00217672]
[1729462982440,0.058054,68911.0,68910.0,0.00217672]
[1729462982633,0.3608,68912.0,68911.0,0.058054]
[1729462982833,0.3608,68920.0,68919.0,0.058047]
[1729462983032,0.058049,68917.0,68916.0,0.04304439]
[1729462983232,0.058049,68917.0,68916.0,0.05805]
[1729462983433,0.058049,68917.0,68910.0,0.00217672]
[1729462983434,0.058052,68915.0,68913.0,0.10109639]
[1729462983645,0.3608,68914.0,68913.0,0.10109639]
[1729462984028,0.418852,68914.0,68913.0,0.058052]
[1729462984431,0.36800937,68914.0,68913.0,0.058052]
[1729462985645,0.30995737,68914.0,68913.0,0.058052]
[1729462985837,0.31095737,68914.0,68913.0,0.058052]
[1729462987346,0.31095737,68914.0,68910.0,0.06023172]
[1729462987643,0.058052,68913.0,68912.0,0.058053]
[1729462987842,0.31095737,68914.0,68912.0,0.058053]
[1729462988541,0.058052,68913.0,68912.0,0.058053]
[1729462990339,0.059052,68913.0,68912.0,0.058053]
[1729462990741,0.001,68913.0,68912.0,0.058053]
[1729462991848,0.001,68913.0,68903.0,0.043]
[1729462991849,0.001,68913.0,68903.0,0.0054]
[1729462992046,0.05806,68904.0,68903.0,0.0054]
[1729462993740,0.05806,68904.0,68903.0,0.063461]
[1729462993940,0.418857,68907.0,68905.0,0.058059]
[1729462995236,0.058058,68906.0,68905.0,0.058059]
[1729462995645,0.3608,68907.0,68903.0,0.0054]
[1729462995948,0.058048,68919.0,68918.0,0.058048]
[1729462997549,0.1154,68924.0,68914.0,0.058051]
[1729462997550,0.0769,68924.0,68914.0,0.058051]
[1729462997750,0.0769,68924.0,68921.0,0.058046]
[1729462998242,0.0769,68924.0,68922.0,0.058045]
[1729462998445,0.3608,68929.0,68928.0,0.05804]
[1729462999740,0.3658,68929.0,68928.0,0.05804]
[1729463000243,0.005,68929.0,68928.0,0.41884]
[1729463000848,0.0362,68946.0,68928.0,0.3608]
[1729463001154,0.0375,68949.0,68946.0,0.058024]
[1729463001353,0.3608,68947.0,68938.0,0.04298294]
[1729463001540,0.3608,68947.0,68934.0,0.04300583]
[1729463001541,0.3608,68939.0,68934.0,0.04300583]
[1729463001744,0.3608,68939.0,68932.0,0.04300583]
[1729463001745,0.3608,68937.0,68932.0,0.04300583]
[1729463001950,0.3608,68937.0,68918.0,0.0387]
[1729463001951,0.058035,68934.0,68931.0,0.04300583]
[1729463002252,0.0365,68933.0,68928.0,0.058039]
[1729463002452,0.0365,68933.0,68928.0,0.10104483]
[1729463002855,0.3608,68929.0,68928.0,0.058039]
[1729463003149,0.058038,68930.0,68927.0,0.04304177]
[1729463003452,0.058038,68930.0,68927.0,0.05804]
[1729463003749,0.3608,68931.0,68927.0,0.05804]
[1729463003955,0.3608,68931.0,68930.0,0.04306654]
[1729463004352,0.3608,68931.0,68929.0,0.058038]
[1729463004655,0.3608,68937.0,68936.0,0.058033]
[1729463004850,0.3608,68937.0,68936.0,0.05744459]
[1729463005051,0.418832,68937.0,68931.0,0.058037]
[1729463005256,0.418832,68937.0,68928.0,0.004]
[1729463005257,0.3608,68937.0,68928.0,0.004]
[1729463005651,0.3608,68937.0,68936.0,0.058033]
[1729463006155,0.0394,68944.0,68936.0,0.058033]
[1729463006454,0.0386,68950.0,68949.0,0.058022]
[1729463007053,0.3608,68954.0,68950.0,0.058021]
[1729463007660,0.418818,68954.0,68950.0,0.058021]
[1729463007959,0.419578,68954.0,68950.0,0.058021]
[1729463008549,0.36156,68954.0,68950.0,0.058021]
[1729463008750,0.058019,68953.0,68950.0,0.058021]
[1729463008952,0.00717643,68951.0,68950.0,0.059021]
[1729463009663,0.04657643,68951.0,68950.0,0.059021]
[1729463010352,0.10459643,68951.0,68950.0,0.001]
[1729463011351,0.48165643,68951.0,68940.0,0.3608]
[1729463011552,0.48165643,68951.0,68927.0,0.13212]
[1729463011553,0.3608,68944.0,68927.0,0.13212]
[1729463012052,0.418827,68944.0,68927.0,0.13212]
[1729463012250,0.418827,68944.0,68939.0,0.05803]
[1729463012464,0.418827,68944.0,68940.0,0.001]
[1729463012661,0.418827,68944.0,68940.0,0.05903]
[1729463012960,0.418827,68944.0,68940.0,0.001]
[1729463012961,0.3608,68944.0,68940.0,0.001]
[1729463013469,0.058029,68941.0,68940.0,0.001]
[1729463014157,0.058029,68941.0,68938.0,0.058031]
[1729463014951,0.05803,68940.0,68935.0,0.00217573]
[1729463015158,0.001,68941.0,68940.0,0.05803]
[1729463015659,0.3608,68944.0,68943.0,0.058027]
[1729463018261,0.3608,68944.0,68940.0,0.004]
[1729463018459,0.3608,68944.0,68940.0,0.058029]
[1729463018460,0.058028,68942.0,68940.0,0.058029]
[1729463019666,0.058028,68942.0,68935.0,0.00217573]
[1729463019667,0.05803,68940.0,68936.0,0.058033]
[1729463019851,0.05803,68940.0,68938.0,0.058031]
[1729463021050,0.05803,68940.0,68935.0,0.00217573]
[1729463021051,0.3608,68944.0,68935.0,0.00217573]
[1729463021256,0.058031,68939.0,68937.0,0.058032]
[1729463021463,0.058031,68939.0,68938.0,0.058031]
[1729463021864,0.418827,68944.0,68939.0,0.05803]
[1729463022068,0.058028,68943.0,68939.0,0.05803]
[1729463022363,0.3608,68944.0,68940.0,0.058029]
[1729463023352,0.058029,68941.0,68940.0,0.058029]
[1729463024459,0.3608,68944.0,68935.0,0.06020873]
[1729463024664,0.058031,68939.0,68936.0,0.058032]
[1729463025166,0.058032,68938.0,68937.0,0.058032]
[1729463025363,0.418832,68938.0,68937.0,0.058032]
[1729463027858,0.419832,68938.0,68937.0,0.062032]
[1729463030166,0.419832,68938.0,68937.0,0.004]
[1729463030370,0.419832,68938.0,68923.0,0.3608]
[1729463030371,0.05804,68929.0,68927.0,0.05804]
[1729463030667,0.7226,68938.0,68936.0,0.058033]
[1729463030668,0.0741,68937.0,68936.0,0.058033]
[1729463031071,0.132132,68937.0,68936.0,0.058033]
[1729463032372,0.133132,68937.0,68936.0,0.062033]
[1729463033871,0.133132,68937.0,68936.0,0.004]
[1729463034964,0.568332,68937.0,68922.0,0.058044]
[1729463035163,0.058047,68920.0,68919.0,0.058047]
[1729463035569,0.058047,68920.0,68919.0,0.10129916]
[1729463035769,0.058047,68920.0,68919.0,0.058047]
[1729463036361,0.058047,68920.0,68919.0,0.10128114]
[1729463036872,0.058047,68920.0,68919.0,0.04323414]
[1729463037171,0.3608,68920.0,68914.0,0.06022732]
[1729463037373,0.058051,68915.0,68914.0,0.06022732]
[1729463037974,0.058051,68915.0,68914.0,0.00217632]
[1729463038675,0.097147,68919.0,68909.0,0.04323414]
[1729463038867,0.097147,68919.0,68906.0,0.06308167]
[1729463038868,0.058049,68917.0,68915.0,0.058051]
[1729463039179,0.05805,68916.0,68915.0,0.058051]
[1729463040875,0.001,68917.0,68916.0,0.05805]
[1729463041465,0.001,68916.0,68911.0,0.04323414]
[1729463041871,0.001,68916.0,68915.0,0.058051]
[1729463042176,0.097148,68919.0,68911.0,0.04323414]
[1729463042377,0.001,68917.0,68911.0,0.04323414]
[1729463042581,0.001,68917.0,68910.0,0.08053414]
[1729463043168,0.001,68917.0,68910.0,0.0373]
[1729463043479,0.001,68917.0,68916.0,0.05805]
[1729463043876,0.3608,68920.0,68919.0,0.058047]
[1729463044467,0.00217721,68929.0,68928.0,0.05804]
[1729463045083,0.06021621,68929.0,68928.0,0.05804]
[1729463045465,0.06021621,68929.0,68915.0,0.0388]
[1729463045466,0.00217721,68929.0,68915.0,0.0388]
[1729463045667,0.00217721,68929.0,68914.0,0.55306712]
[1729463045668,0.3608,68928.0,68914.0,0.36297612]
[1729463045867,0.3608,68928.0,68914.0,0.00217612]
[1729463046066,0.058043,68925.0,68914.0,0.06022812]
[1729463047371,0.058043,68925.0,68924.0,0.058043]
[1729463048670,0.3608,68928.0,68927.0,0.058041]
[1729463048671,0.41884,68928.0,68927.0,0.058041]
[1729463048883,0.3608,68928.0,68916.0,0.3608]
[1729463049081,0.058043,68924.0,68923.0,0.058042]
[1729463050586,0.3608,68927.0,68926.0,0.058041]
[1729463051581,0.418841,68927.0,68926.0,0.058041]
[1729463051976,0.058043,68924.0,68923.0,0.058043]
[1729463053880,0.3608,68927.0,68926.0,0.058041]
[1729463053881,0.418841,68927.0,68926.0,0.058041]
[1729463054682,0.3608,68927.0,68926.0,0.058041]
[1729463056384,0.3608,68927.0,68916.0,0.46208314]
[1729463056385,0.3608,68927.0,68919.0,0.01134492]
[1729463056586,0.3608,68927.0,68916.0,0.40403414]
[1729463056587,0.3608,68927.0,68916.0,0.36196]
[1729463056893,0.00217721,68929.0,68928.0,0.05804]
[1729463057978,0.06021621,68929.0,68928.0,0.05804]
[1729463058288,0.36297721,68929.0,68920.0,0.04323414]
[1729463058581,0.36297721,68929.0,68911.0,0.0376]
[1729463058582,0.058047,68919.0,68914.0,0.04541026]
[1729463058774,0.058047,68919.0,68915.0,0.04323414]
[1729463058976,0.058047,68919.0,68916.0,0.04323414]
[1729463059383,0.058047,68919.0,68918.0,0.058048]
[1729463060382,0.36497721,68929.0,68916.0,0.04323414]
[1729463060581,0.36497721,68929.0,68917.0,0.04323414]
[1729463060791,0.058044,68923.0,68922.0,0.058044]
[1729463062806,0.36497721,68929.0,68920.0,0.04323414]
[1729463062994,0.36497721,68929.0,68928.0,0.05804]
[1729463063883,0.36297721,68929.0,68928.0,0.05804]
[1729463064683,0.06021621,68929.0,68928.0,0.05804]
[1729463064890,0.06221621,68929.0,68928.0,0.05804]
[1729463065593,0.06321621,68929.0,68928.0,0.05804]
[1729463081301,0.058042,68925.0,68924.0,0.058042]
[1729463081697,0.058042,68926.0,68924.0,0.058043]
[1729463081895,0.058042,68926.0,68914.0,0.00217612]
[1729463081896,0.3608,68925.0,68914.0,0.00217612]
[1729463082192,0.058051,68915.0,68914.0,0.00217612]
[1729463083698,0.059051,68915.0,68914.0,0.00217612]
[1729463084798,0.059051,68915.0,68914.0,0.01517612]
[1729463085000,0.060051,68915.0,68914.0,0.013]
[1729463085410,0.09560037,68915.0,68914.0,0.013]
[1729463085707,0.060051,68915.0,68914.0,0.013]
[1729463086710,0.07127621,68915.0,68914.0,0.013]
[1729463088807,0.060051,68915.0,68914.0,0.013]
[1729463099409,0.058057,68907.0,68906.0,0.0054]
[1729463099616,0.418857,68907.0,68906.0,0.0054]
[1729463100112,0.3608,68907.0,68894.0,0.03957722]
[1729463100334,0.3608,68907.0,68896.0,0.058067]
[1729463100335,0.058064,68899.0,68896.0,0.058067]
[1729463100613,0.058064,68899.0,68894.0,0.00217722]
[1729463100614,0.3608,68901.0,68894.0,0.00217722]
[1729463100918,0.3608,68901.0,68900.0,0.058063]
[1729463101215,0.058064,68900.0,68897.0,0.058066]
[1729463101414,0.058065,68899.0,68897.0,0.058066]
[1729463101613,0.058065,68898.0,68897.0,0.058066]
[1729463102015,0.058067,68896.0,68894.0,0.00417722]
[1729463102214,0.418868,68895.0,68894.0,0.00217722]
[1729463103211,0.418868,68895.0,68894.0,0.00103084]
[1729463104721,0.420868,68895.0,68894.0,0.00203084]
[1729463105311,0.420868,68895.0,68894.0,0.00305919]
[1729463111115,0.781668,68895.0,68882.0,0.05760646]
[1729463111320,0.3608,68887.0,68881.0,0.06929753]
[1729463111516,0.058075,68886.0,68881.0,0.11568546]
[1729463111712,0.3608,68887.0,68880.0,0.05760646]
[1729463111713,0.058078,68884.0,68880.0,0.05760646]
[1729463112024,0.3608,68887.0,68881.0,0.05760646]
[1729463112321,0.3608,68887.0,68886.0,0.058075]
[1729463113421,0.418874,68887.0,68886.0,0.058075]
[1729463114426,0.3608,68887.0,68886.0,0.058075]
[1729463114621,0.3608,68887.0,68886.0,0.05910529]
[1729463114822,0.3618,68887.0,68886.0,0.05910529]
[1729463115229,0.3628,68887.0,68886.0,0.05910529]
[1729463115431,0.420874,68887.0,68886.0,0.05910529]
[1729463115627,0.420874,68887.0,68886.0,0.00103029]
[1729463116733,0.3628,68887.0,68886.0,0.00103029]
[1729463116928,0.3628,68887.0,68886.0,0.05910529]
[1729463117531,0.002,68887.0,68886.0,0.05910529]
[1729463117728,0.060074,68887.0,68886.0,0.06013558]
[1729463120934,0.060074,68887.0,68886.0,0.06116568]
[1729463122131,0.060074,68887.0,68886.0,0.00309068]
[1729463122938,0.060074,68887.0,68886.0,0.00412078]
[1729463124033,0.134774,68887.0,68886.0,0.00412078]